[Event "Reykjavik Open 2024"]
[Site "Reykjavik"]
[Date "2024.03.16"]
[Round "2.31"]
[White "Mai, Alexander Oliver"]
[Black "Katz, Alexander"]
[Result "0-1"]
[ECO "B00"]
[WhiteElo "2160"]
[BlackElo "2418"]
[Annotator "TA"]
[PlyCount "60"]
[EventDate "2024.03.12"]
[EventCountry "ISL"]
[SourceTitle "playchess.com"]
[Source "ChessBase"]
[SourceQuality "1"]
[TimeControl "40/5400+30:1800+30"]

{[%evp 9,60,50,53,32,43,33,42,39,54,46,56,56,49,33,48,0,0,-51,-52,-47,-48,-38,-53,-34,-39,-50,-40,-60,-65,-61,-63,-115,-71,-69,-58,-84,-74,-81,-106,-235,-216,-214,-179,-195,-193,-368,-353,-362,-361,-515,-470,-1184,-1176]} 1. e4 {[%emt 0:00:02]} Nc6 {[%emt 0:06:26]} 2. Nf3 {[%emt 0:00:21]} d6 {[%emt 0:00:10]} 3. d4 {[%emt 0:00:07]} Nf6 {[%emt 0:00:04]} 4. Nc3 {[%emt 0:00:08]} g6 {[%emt 0:00:05]} 5. d5 {[%emt 0:04:42]} Nb8 {[%emt 0:00:29]} 6. Be3 {[%emt 0:00:54]} Bg7 {[%emt 0:00:54]} 7. Qd2 {[%emt 0:00:30]} O-O {[%emt 0:02:56]} 8. Bh6 {[%emt 0:01:37] White is slightly better.} c6 {[%emt 0:02:25]} 9. h3 {[%emt 0:04:15]} a6 {[%emt 0:08:21]} 10. O-O-O {[%emt 0:02:48]} b5 {[%emt 0:01:32]} 11. Bxg7 {[%emt 0:13:50]} Kxg7 {[%emt 0:00:26]} 12. dxc6 {[%emt 0:00:45]} (12. g4 $14) 12... Nxc6 $11 {[%emt 0:00:18][%cal Bb8c6,Bc6d8,Bd8e6,Be6d4][%mdl 32]} 13. e5 {[%emt 0:00:16]} dxe5 $15 {[%emt 0:02:02]} 14. Qxd8 {[%emt 0:00:18]} Rxd8 {[%emt 0:01:17]} 15. Rxd8 {[%emt 0:00:07]} Nxd8 {[%emt 0:00:04]} 16. Nxe5 {[%emt 0:00:05]} Bb7 {[%emt 0:01:26]} 17. Rg1 {[%emt 0:02:39]} Ne6 {[%emt 0:05:52]} 18. g3 {[%emt 0:01:07]} Rc8 {[%emt 0:03:43]} 19. a3 {[%emt 0:02:55]} Nd4 {[%emt 0:07:40]} 20. Bg2 {[%emt 0:04:40] Prevents Nd5} (20. Bd3 $1 $15) 20... Bxg2 {[%emt 0:05:55]} 21. Rxg2 {[%emt 0:00:03]} a5 {[%emt 0:00:17] [#] ...b4 would now be deadly. Black is more active.} 22. f4 {[%emt 0:01:49]} b4 {[%emt 0:00:22]} 23. axb4 {[%emt 0:00:25]} axb4 {[%emt 0:00:01]} 24. Nb1 {[%emt 0:01:32] Loses the game.} (24. Rd2 $17) 24... Nd5 {[%emt 0:03:22]} 25. Rf2 {[%emt 0:02:24]} Ne3 {[%emt 0:06:06][%cal Rd4b3] [#]} 26. Kd2 {[%emt 0:01:04]} Ndxc2 {[%emt 0:01:08]} 27. Re2 $2 {[%emt 0:02:44]} (27. Ke2 {was worth a try.}) 27... Nf1+ $19 {[%emt 0:03:46]} 28. Kd3 {[%emt 0:00:12]} b3 {[%emt 0:00:34]} 29. Nd2 {[%emt 0:00:36]} (29. g4 $142) 29... Nxg3 {[%emt 0:02:14]} 30. Rg2 {[%emt 0:00:14]} (30. Rh2 $142) 30... Ne1+ {[%emt 0:01:38] Weighted Error Value: White=0.56/Black=0.08 (flawless) .  Mistake:       	White=7     	---        Inaccurate:     	White=1     	Black=1      OK:         	White=4     	Black=11     Best:        	White=4     	Black=3} 0-1

[Event "Reykjavik Open 2024"]
[Site "Reykjavik"]
[Date "2024.03.16"]
[Round "2.32"]
[White "Garifullina, Leya"]
[Black "Pujari, Rucha"]
[Result "1-0"]
[ECO "C95"]
[WhiteElo "2413"]
[BlackElo "2147"]
[Annotator "TA"]
[PlyCount "81"]
[EventDate "2024.03.12"]
[EventCountry "ISL"]
[SourceTitle "playchess.com"]
[Source "ChessBase"]
[SourceQuality "1"]
[TimeControl "40/5400+30:1800+30"]

{[%evp 32,81,21,19,20,22,20,22,24,18,22,20,83,62,65,32,54,41,109,108,118,22,50,42,105,62,235,225,240,179,222,216,285,278,303,264,343,364,464,443,604,585,910,870,899,895,1503,1388,1544,1480,1401,1368]} 1. e4 {[%emt 0:02:19]} e5 {[%emt 0:09:49]} 2. Nf3 {[%emt 0:00:14]} Nc6 {[%emt 0:00:19]} 3. Bb5 {[%emt 0:00:10]} a6 {[%emt 0:00:38]} 4. Ba4 {[%emt 0:00:14]} Nf6 {[%emt 0:00:10]} 5. O-O {[%emt 0:00:10]} Be7 {[%emt 0:00:21]} 6. Re1 {[%emt 0:00:10]} b5 {[%emt 0:00:11]} 7. Bb3 {[%emt 0:00:06]} d6 {[%emt 0:00:53]} 8. c3 {[%emt 0:00:16]} O-O {[%emt 0:01:21]} 9. h3 {[%emt 0:00:08]} Nb8 {[%emt 0:00:36]} 10. d4 {[%emt 0:00:13]} Nbd7 {[%emt 0:00:16]} 11. Nbd2 {[%emt 0:00:20]} Bb7 {[%emt 0:00:12]} 12. Bc2 {[%emt 0:00:09]} Re8 {[%emt 0:00:43]} 13. Nf1 {[%emt 0:00:09]} Bf8 {[%emt 0:00:26]} 14. Ng3 {[%emt 0:00:12]} g6 {[%emt 0:00:20]} 15. a4 {[%emt 0:00:10]} c5 {[%emt 0:01:49]} 16. d5 {[%emt 0:01:40]} c4 {[%emt 0:00:34]} 17. Be3 {[%emt 0:03:45]} Qc7 {[%emt 0:07:46]} 18. Nh2 {[%emt 0:05:53]} h5 {[%emt 0:08:16]} 19. Nf3 {[%emt 0:05:22]} Nc5 {[%emt 0:04:26] The position is equal.} 20. Qd2 {[%emt 0:08:46]} Rab8 {[%emt 0:05:46]} 21. Ra3 {[%emt 0:07:13]} bxa4 {[%emt 0:18:20]} (21... Rec8 $11 {keeps the balance.}) 22. Bxc5 {[%emt 0:07:56]} Qxc5 {[%emt 0:03:53]} 23. Bxa4 {[%emt 0:00:53]} Red8 {[%emt 0:01:57]} 24. Rea1 {[%emt 0:00:25]} Be7 {[%emt 0:04:30]} (24... Rdc8 $14) 25. Qe2 $16 {[%emt 0:09:08]} Rdc8 {[%emt 0:12:39]} 26. R1a2 {[%emt 0:03:53]} ({Better is} 26. Nd2 $16) 26... Bd8 {[%emt 0:00:47]} 27. Nf1 {[%emt 0:03:18]} h4 {[%emt 0:03:07]} 28. N3d2 {[%emt 0:04:10]} Nh5 $2 {[%emt 0:01:58] [#] Black cannot hold the game after this.} (28... Ba8 $14) 29. Ne3 $18 {[%emt 0:02:55]} Nf4 {[%emt 0:00:34]} 30. Qxc4 {[%emt 0:01:24]} Qa7 {[%emt 0:01:28]} 31. Qf1 {[%emt 0:01:15]} a5 {[%emt 0:02:38]} 32. Bb5 {[%emt 0:02:38][%cal Ba4b5,Bb5a6,Ba6c4][%mdl 32] Inhibits Ba6.} Ba8 {[%emt 0:06:01]} 33. Ba6 {[%emt 0:07:15]} Rc5 {[%emt 0:01:16]} 34. Nb3 {[%emt 0:00:51]} Bb6 {[%emt 0:01:19]} 35. Nxc5 {[%emt 0:00:07] White is clearly winning.} Bxc5 {[%emt 0:00:15]} 36. Rxa5 {[%emt 0:00:07]} Bxe3 {[%emt 0:01:00]} 37. Bc4 {[%emt 0:00:24]} Bxf2+ {[%emt 0:01:40]} 38. Qxf2 {[%emt 0:00:11]} Qb7 {[%emt 0:00:23]} 39. Rb5 {[%emt 0:00:48]} Qc8 {[%emt 0:00:30]} 40. Rxb8 {[%emt 0:00:05]} Qxb8 {[%emt 0:00:05]} 41. Qa7 {[%emt 0:30:07] Weighted Error Value: White=0.20 (precise) /Black=0.59.  Loses game:     	---       	Black=1      Mistake:       	White=1     	Black=3      Inaccurate:     	White=2     	Black=4      OK:         	White=8     	Black=3      Best:        	White=1     	---} 1-0

[Event "Reykjavik Open 2024"]
[Site "Reykjavik"]
[Date "2024.03.16"]
[Round "2.33"]
[White "Duong, Thanh Nha"]
[Black "Jin, Yueheng"]
[Result "0-1"]
[ECO "D53"]
[WhiteElo "2144"]
[BlackElo "2404"]
[Annotator "TA"]
[PlyCount "96"]
[EventDate "2024.03.12"]
[EventCountry "ISL"]
[SourceTitle "playchess.com"]
[Source "ChessBase"]
[SourceQuality "1"]
[TimeControl "40/5400+30:1800+30"]

{[%evp 11,96,0,30,24,43,4,0,6,11,0,0,0,0,-11,-3,-19,-16,-18,-12,-11,-20,-5,-18,-33,-45,-47,-7,-62,-64,-75,-10,-59,-70,-66,-50,-49,-59,-44,-54,-148,-148,-149,-127,-213,-215,-204,-211,-213,-198,-198,-200,-201,-201,-244,-253,-282,-282,-277,-283,-669,-450,-648,-347,-370,-365,-371,-372,-443,-436,-413,-413,-394,-377,-4137,-4137,-4133,-3874,-8120,-6569,-29972,-29973,-29973,-29974,-29974,-29974,-29973,-29972]} 1. Nf3 {[%emt 0:00:30]} Nf6 {[%emt 0:00:09]} 2. c4 {[%emt 0:00:21]} e6 {[%emt 0:00:30]} 3. Nc3 {[%emt 0:01:11]} d5 {[%emt 0:00:11]} 4. d4 {[%emt 0:00:16]} Be7 {[%emt 0:02:30]} 5. Bg5 {[%emt 0:00:35]} h6 {[%emt 0:00:07]} 6. Bh4 {[%emt 0:02:35]} dxc4 {[%emt 0:00:15]} 7. e3 {[%emt 0:02:43]} c5 {[%emt 0:00:08]} 8. dxc5 {[%emt 0:00:43]} Qxd1+ {[%emt 0:00:16]} 9. Rxd1 {[%emt 0:00:30] The position is equal.} Nbd7 {[%emt 0:01:37]} 10. Bxc4 {[%emt 0:02:25]} (10. Be2 {simplifies} O-O 11. Bxc4 Nxc5 12. O-O) 10... Nxc5 {[%emt 0:01:03]} 11. Ne5 {[%emt 0:16:01]} a6 {[%emt 0:09:05] Prevents Bb5+.} 12. a3 {[%emt 0:04:35]} b5 {[%emt 0:08:53]} 13. Ba2 {[%emt 0:01:00]} Bb7 {[%emt 0:02:32]} (13... g5 $5 14. Bg3 $8 Bb7 $11) 14. f3 {[%emt 0:07:09]} Rc8 {[%emt 0:01:21][%cal Of6d5]} 15. Bf2 {[%emt 0:05:37]} Ncd7 {[%emt 0:05:14]} 16. Nxd7 {[%emt 0:07:49]} Nxd7 {[%emt 0:00:05]} 17. Rc1 {[%emt 0:03:17]} Bf6 {[%emt 0:05:18]} 18. Ke2 {[%emt 0:01:25]} Nb6 {[%emt 0:00:51]} 19. Rc2 {[%emt 0:08:51]} (19. e4 $11 Nd7 20. Rhd1) 19... Na4 $15 {[%emt 0:08:45]} 20. Rhc1 {[%emt 0:10:12] [#]} Nxb2 {[%emt 0:10:01] Black is more active.} (20... Nxc3+ $1 $17 21. bxc3 Be7) 21. Ne4 {[%emt 0:01:03]} (21. Be1 $1 $11 {is superior.} Nc4 22. Ne4 Bxe4 23. fxe4) 21... Rxc2+ {[%emt 0:01:02]} 22. Rxc2 {[%emt 0:00:00] Nxf6+ would now be deadly.} Bxe4 {[%emt 0:00:21]} 23. Rc8+ {[%emt 0:00:11]} Bd8 {[%emt 0:00:17]} 24. fxe4 {[%emt 0:00:08]} Na4 {[%emt 0:18:47] White must now prevent ...Kd7.} 25. Be1 {[%emt 0:02:54] Black keeps a firm grip on the game.} ({White should play} 25. Kf3 $1 $15) 25... Kd7 $17 {[%emt 0:00:07]} 26. Ra8 {[%emt 0:01:07][%cal Oa2b1] [#]} Kc6 $1 {[%emt 0:01:04] aiming for ...Kb7.} 27. Ba5 {[%emt 0:05:42]} (27. Rc8+ $17 {might work better.} Kb7 28. Rc2) 27... Bxa5 $19 {[%emt 0:01:07]} 28. Rxh8 {[%emt 0:00:06][%mdl 4096] Endgame. KRB-KBN} Nc3+ {[%emt 0:00:02]} 29. Kd3 {[%emt 0:00:43]} Nxa2 {[%emt 0:00:03]} 30. Rf8 {[%emt 0:02:01]} Bc3 {[%emt 0:04:37] And now ...Bb2 would win.} (30... b4 31. axb4 Nxb4+ 32. Kc3) 31. Rxf7 {[%emt 0:00:28] [#]} Bf6 $1 {[%emt 0:01:02]} 32. Ra7 {[%emt 0:02:36]} Kb6 {[%emt 0:01:33]} 33. Rd7 {[%emt 0:00:13]} b4 {[%emt 0:05:20]} 34. axb4 {[%emt 0:00:48]} Nxb4+ {[%emt 0:00:03]} 35. Ke2 $2 {[%emt 0:07:14]} (35. Kc4 Nc6 36. Rd2) 35... Nc6 {[%emt 0:02:42]} 36. Rd6 {[%emt 0:00:43]} (36. e5 $142 Bxe5 37. Kd3) 36... Kc7 {[%emt 0:00:06]} 37. e5 {[%emt 0:01:17]} Bxe5 {[%emt 0:00:45]} 38. Rxe6 {[%emt 0:00:15]} Bxh2 {[%emt 0:00:55]} 39. Re4 {[%emt 0:02:26]} Kb6 {[%emt 0:01:42]} 40. Kd3 {[%emt 0:01:02]} Kb5 {[%emt 0:01:17]} 41. Rh4 {[%emt 0:02:46]} Be5 {[%emt 0:00:26] Strongly threatening ...a5.} 42. Rh1 $2 {[%emt 0:00:32]} (42. Kc2) 42... a5 {[%emt 0:00:25]} 43. Ke4 {[%emt 0:02:16]} Bf6 {[%emt 0:00:25] Threatens to win with ...a4.} 44. Kd5 {[%emt 0:01:26]} a4 {[%emt 0:00:28] ( -> ...a3)} 45. e4 {[%emt 0:06:19]} a3 {[%emt 0:00:28] Black mates.} 46. Rc1 {[%emt 0:02:55]} Nb4+ {[%emt 0:01:47]} 47. Kd6 {[%emt 0:03:13]} a2 {[%emt 0:00:05]} 48. Rc5+ {[%emt 0:05:39]} Kb6 {[%emt 0:00:13] Weighted Error Value: White=0.71/Black=0.16 (very precise) .  Mistake:       	White=7     	Black=1      Inaccurate:     	White=1     	Black=2      OK:         	White=13    	Black=16     Best:        	---       	Black=7      Strong:       	---       	Black=2} 0-1

[Event "Reykjavik Open 2024"]
[Site "Reykjavik"]
[Date "2024.03.16"]
[Round "2.34"]
[White "Thorfinnsson, Bragi"]
[Black "Bergsson, Stefan"]
[Result "1-0"]
[ECO "E73"]
[WhiteElo "2397"]
[BlackElo "2144"]
[Annotator "TA"]
[PlyCount "83"]
[EventDate "2024.03.12"]
[EventCountry "ISL"]
[SourceTitle "playchess.com"]
[Source "ChessBase"]
[SourceQuality "1"]
[TimeControl "40/5400+30:1800+30"]

{[%evp 12,83,27,22,43,39,43,50,51,11,28,16,45,35,52,59,63,49,39,0,-10,-7,-6,0,-6,-38,0,0,0,0,0,0,0,0,0,0,0,0,175,0,0,0,0,0,0,-22,52,52,62,0,0,0,0,0,52,78,145,192,583,588,692,656,1874,1799,2660,1097,29996,29975,29972,29967,29990,29988,29996,29997]} 1. d4 {[%emt 0:06:13]} Nf6 {[%emt 0:02:03]} 2. c4 {[%emt 0:02:08]} g6 {[%emt 0:00:15]} 3. Nc3 {[%emt 0:00:53]} Bg7 {[%emt 0:00:07]} 4. e4 {[%emt 0:01:03]} d6 {[%emt 0:00:06]} 5. Be2 {[%emt 0:02:10]} O-O {[%emt 0:00:22]} 6. h4 {[%emt 0:03:33]} c5 {[%emt 0:09:39]} 7. d5 {[%emt 0:01:13]} h5 {[%emt 0:03:00]} 8. Nf3 {[%emt 0:07:14]} Bg4 {[%emt 0:06:03]} 9. O-O {[%emt 0:13:22]} Nbd7 {[%emt 0:01:33] White is slightly better.} 10. Bg5 {[%emt 0:04:48]} a6 {[%emt 0:01:08]} 11. a4 {[%emt 0:03:19]} Qb6 {[%emt 0:05:03]} 12. Ra3 {[%emt 0:04:34]} e6 {[%emt 0:05:42]} (12... Qxb2 $2 13. Rb3 Nxe4 14. Rxb2 $18 (14. Nxe4 Qa2 $18)) 13. Rb3 {[%emt 0:07:38]} Qc7 {[%emt 0:00:33]} 14. dxe6 {[%emt 0:19:59]} fxe6 {[%emt 0:01:35]} 15. Qd2 {[%emt 0:00:00]} (15. Bxf6 $14 Bxf6 16. Ng5 Bxg5 17. hxg5) 15... Bxf3 $1 $11 {[%emt 0:02:08]} 16. Bxf3 {[%emt 0:00:00]} Ne5 {[%emt 0:00:05]} 17. Be2 {[%emt 0:00:00]} Nc6 {[%emt 0:04:52]} 18. Be3 {[%emt 0:00:24][%cal Oe4e5]} Ng4 {[%emt 0:03:08]} 19. Bxg4 {[%emt 0:01:45]} hxg4 {[%emt 0:04:21]} 20. Qe2 {[%emt 0:00:59]} g3 {[%emt 0:08:41]} 21. fxg3 {[%emt 0:02:24]} Rxf1+ {[%emt 0:01:04]} 22. Qxf1 {[%emt 0:00:11]} Rf8 {[%emt 0:00:12]} 23. Qe2 {[%emt 0:00:24]} Bd4 {[%emt 0:10:09] [#] Hoping for ...Na5.} 24. Nd1 {[%emt 0:01:02]} d5 $2 {[%emt 0:06:14]} 25. Kh2 $2 {[%emt 0:01:49]} (25. cxd5 Qxg3 26. Nf2 (26. dxc6 Be5 $11) 26... exd5 27. exd5 Be5) (25. exd5 $18 exd5 26. cxd5) 25... Na5 {[%emt 0:06:03]} 26. Rd3 {[%emt 0:00:36]} dxe4 {[%emt 0:06:37]} 27. Rxd4 {[%emt 0:03:52]} cxd4 {[%emt 0:00:01]} 28. Bxd4 {[%emt 0:00:07]} Nc6 {[%emt 0:08:27]} (28... Qxc4 $2 29. Qxe4 Kf7 30. Ne3 $18) (28... e5 $11 29. Bc3 Nxc4 (29... Qxc4 $2 30. Qg4 $16)) 29. Bc3 $14 {[%emt 0:00:19]} Qf7 {[%emt 0:00:47]} 30. Qxe4 {[%emt 0:02:14]} ({White should play} 30. Ne3 $14 e5 31. Qg4) 30... Qf5 $11 {[%emt 0:00:19]} 31. Qe3 $40 {[%emt 0:00:43][%mdl 128] White has some attack.} e5 {[%emt 0:01:16]} 32. b4 {[%emt 0:00:32]} Rd8 {[%emt 0:01:49]} ({Black should try} 32... Qc2 $11 33. Qg5 Qe4 (33... Qxd1 34. Qxg6+ Kh8 35. Qh6+ Kg8 36. Qg6+ Kh8 37. Qh6+ Kg8 38. Qg6+ $11)) 33. Nf2 $14 {[%emt 0:00:16]} Nd4 {[%emt 0:01:21]} (33... g5 $142) 34. Ne4 $16 {[%emt 0:01:57]} Nc2 $2 {[%emt 0:00:56]} (34... Kg7 {is tougher.} 35. b5 axb5) 35. Qb6 $1 $18 {[%emt 0:00:24][%csl LRb7,LRd8]} Rf8 {[%emt 0:00:46] [#]} 36. Ng5 {[%emt 0:01:06]} (36. Qxb7 Ne3 37. Nd2 (37. Be1 $2 Ng4+ 38. Kh3 Nf2+ 39. Kh2 Qxe4 $19) 37... Ng4+ (37... Qc2 38. Qb6 $11) 38. Kh3 Rd8 $19) 36... Nd4 {[%emt 0:01:33]} 37. Qxb7 {[%emt 0:00:56][%csl Gg5][%cal Rb7h7]} Rc8 {[%emt 0:00:03]} 38. c5 {[%emt 0:02:42]} (38. b5 $142 a5 39. Bxa5 (39. Qd5+ Kg7 $18)) 38... Ne2 {[%emt 0:00:53]} 39. Qd5+ {[%emt 0:00:10] White mates.} Kf8 {[%emt 0:00:17]} 40. Bxe5 {[%emt 0:00:24]} Re8 {[%emt 0:00:43]} 41. Bd6+ {[%emt 0:33:10]} Kg7 {[%emt 0:30:06]} 42. Qb7+ {[%emt 0:00:08] Weighted Error Value: White=0.15 (very precise) /Black=0.52.  Loses game:     	---       	Black=1      Missed win:     	White=1     	---        Mistake:       	White=2     	Black=4      Inaccurate:     	White=2     	Black=3      OK:         	White=10    	Black=6      Best:        	White=4     	Black=1      Strong:       	---       	Black=1} 1-0

[Event "Reykjavik Open 2024"]
[Site "Reykjavik"]
[Date "2024.03.16"]
[Round "2.35"]
[White "Manucharyan, Andriy"]
[Black "Tania, Sachdev"]
[Result "0-1"]
[ECO "E11"]
[WhiteElo "2080"]
[BlackElo "2393"]
[Annotator "TA"]
[PlyCount "118"]
[EventDate "2024.03.12"]
[EventCountry "ISL"]
[SourceTitle "playchess.com"]
[Source "ChessBase"]
[SourceQuality "1"]
[TimeControl "40/5400+30:1800+30"]

{[%evp 12,118,16,8,13,-61,-67,-76,-66,-48,-53,-67,-32,-38,-28,-41,-24,0,0,-1,-2,-100,-100,-164,-133,-124,-134,-120,-137,-123,-96,-120,-116,-126,-122,-114,-117,-109,-70,-82,-85,-88,-64,-65,0,-72,-80,-83,-87,-83,-89,-95,-97,-102,-92,-98,-54,-59,-66,-67,-67,-64,-54,-58,-30,-71,-58,-141,-59,-57,-55,-62,-60,-97,-92,-114,-68,-64,-56,-80,-87,-392,-385,-387,-375,-516,-516,-495,-461,-1197,-1164,-1169,-1156,-1088,-856,-1325,-1047,-5127,-4818,-2336,-2461,-1643,-3316,-4729,-4622,-2808,-2502,-29963,-5081]} 1. d4 {[%emt 0:00:02]} Nf6 {[%emt 0:01:23]} 2. c4 {[%emt 0:00:29]} e6 {[%emt 0:00:04]} 3. g3 {[%emt 0:00:04]} d5 {[%emt 0:00:43]} 4. Nf3 {[%emt 0:00:06]} Bb4+ {[%emt 0:00:04]} 5. Bd2 {[%emt 0:01:33]} a5 {[%emt 0:00:16]} 6. Bg2 {[%emt 0:03:59]} O-O {[%emt 0:01:22]} 7. O-O {[%emt 0:00:09]} dxc4 {[%emt 0:00:35]} 8. Ne5 {[%emt 0:12:54]} ({Weiss braucht} 8. e3 $1 $11) 8... Qxd4 $15 {[%emt 0:03:24]} 9. Bxb4 {[%emt 0:01:34]} Qxd1 {[%emt 0:00:31] Schwarz steht besser.} (9... Qxe5 $2 10. Bxf8 Bd7 11. Ba3 $18 (11. Bxb7 Ra7 $18)) 10. Rxd1 {[%emt 0:00:06]} axb4 {[%emt 0:00:04]} 11. Nxc4 {[%emt 0:03:48]} Nbd7 {[%emt 0:03:32][%cal Of6d5]} 12. Nbd2 {[%emt 0:04:57]} Ra7 {[%emt 0:19:21]} 13. Nb3 {[%emt 0:04:11]} c5 {[%emt 0:18:08]} 14. Nd6 {[%emt 0:22:35]} b6 {[%emt 0:01:34]} 15. Nb5 {[%emt 0:15:39]} Ra4 {[%emt 0:00:32]} 16. Nc7 {[%emt 0:00:26]} (16. Nd6 $1 $11) 16... Ne5 $17 {[%emt 0:03:47] ...Bd7 ist eine echte Drohung.} 17. Nc1 {[%emt 0:08:40]} (17. Na8 $17 {war einen Versuch wert.} Ra6 18. a3) 17... Ra7 {[%emt 0:19:26]} 18. Nb5 {[%emt 0:01:36][%cal Bc7b5,Bb5d6,Bd6e4][%mdl 32]} Rd7 {[%emt 0:00:12]} 19. Rxd7 {[%emt 0:02:49]} Bxd7 {[%emt 0:00:52]} (19... Nexd7 20. a3 $15) 20. Nd6 {[%emt 0:00:42]} Ne8 {[%emt 0:02:04]} 21. Ne4 {[%emt 0:01:45]} Nc4 {[%emt 0:10:12]} 22. Nd3 {[%emt 0:01:33]} Bb5 {[%emt 0:03:49]} 23. a4 {[%emt 0:02:18]} bxa3 {[%emt 0:01:11]} 24. bxa3 {[%emt 0:00:09][%cal Bb2a3,Ba3a4][%mdl 32]} Ned6 {[%emt 0:01:25]} 25. a4 {[%emt 0:01:14] Nxd6 wäre nun fies.} Nxe4 {[%emt 0:01:46]} 26. Bxe4 {[%emt 0:00:54]} Bd7 {[%emt 0:03:32]} 27. a5 {[%emt 0:04:09]} Nd2 {[%emt 0:00:09]} (27... bxa5 28. Nxc5 Bb5 29. Bd3 $11) (27... Nxa5 $15 28. Nxc5 bxc5 29. Rxa5 Rc8) 28. Bb7 {[%emt 0:01:16]} (28. Ne5 $1 $11 Bb5 29. Bb7 bxa5 (29... Bxe2 30. axb6 Rd8 31. Bg2 $18) 30. Rxa5 Bxe2 31. Rxc5) 28... Nb3 {[%emt 0:00:34][%csl LRa1,LRa5]} 29. Ra3 {[%emt 0:00:27]} Nxa5 {[%emt 0:02:51]} 30. Nxc5 {[%emt 0:00:22]} Nc4 {[%emt 0:01:15]} 31. Rc3 {[%emt 0:01:10]} bxc5 {[%emt 0:00:14]} 32. Rxc4 {[%emt 0:00:05][%mdl 4096] Endspiel. KRB-KRB} Rb8 {[%emt 0:00:02]} 33. Bf3 {[%emt 0:02:57]} Rc8 {[%emt 0:00:52]} 34. Kf1 {[%emt 0:00:39]} Kf8 {[%emt 0:00:11]} 35. Ke1 {[%emt 0:00:27]} Ke7 {[%emt 0:00:11]} 36. Kd2 {[%emt 0:00:36]} Kd6 {[%emt 0:01:08]} 37. Rc2 {[%emt 0:00:39]} Rb8 {[%emt 0:01:02]} 38. Kc3 {[%emt 0:00:52]} Bc6 {[%emt 0:00:28]} 39. Rd2+ {[%emt 0:01:00] [#]} (39. Bxc6 $15 Kxc6 40. Ra2) 39... Kc7 {[%emt 0:00:04]} (39... Bd5 $1 $17 40. Bg2 (40. e4 $2 Rb3+ 41. Kc2 Rxf3 $19) 40... f5) 40. Bxc6 $15 {[%emt 0:00:26]} Kxc6 {[%emt 0:00:02] KR-KR} 41. Ra2 $1 {[%emt 0:30:58] Wehrt Ra8 ab} h5 {[%emt 0:07:29]} 42. e3 {[%emt 0:00:00]} g5 {[%emt 0:06:31]} 43. h3 {[%emt 0:00:00]} Rb1 {[%emt 0:07:39]} ({Günstiger ist} 43... g4 $17 44. hxg4 hxg4) 44. Ra7 $1 {[%emt 0:00:00]} Rb7 {[%emt 0:04:57]} 45. Ra4 {[%emt 0:00:00]} f5 {[%emt 0:02:34]} 46. h4 $2 {[%emt 0:00:00][%mdl 8192] [#] Davon erholt Weiß sich nicht mehr.} (46. Ra8 $17 {ist zäher.}) 46... g4 $1 $19 {[%emt 0:00:56]} 47. e4 {[%emt 0:00:00]} Kb5 {[%emt 0:01:14] Wehrt Ra6 ab} 48. Kb3 {[%emt 0:00:00]} Rd7 {[%emt 0:01:20]} 49. exf5 {[%emt 0:00:00]} exf5 {[%emt 0:00:23] Droht ...Rd3+ und aus.} 50. Ra8 {[%emt 0:01:12]} (50. Ra2 $142 Rd3+ 51. Kc2) 50... Rd3+ {[%emt 0:00:08]} 51. Kc2 {[%emt 0:00:05]} Rf3 {[%emt 0:00:03]} 52. Rh8 {[%emt 0:00:08]} Rxf2+ {[%emt 0:00:49]} 53. Kd1 {[%emt 0:00:17]} Kc4 {[%emt 0:01:57]} 54. Rxh5 {[%emt 0:01:14]} Kd3 {[%emt 0:00:06]} 55. Ke1 {[%emt 0:00:39] Es drohte Rf1+} Rf3 {[%emt 0:00:56]} 56. Rh8 {[%emt 0:01:57]} Rxg3 {[%emt 0:00:16]} 57. Rf8 {[%emt 0:00:53]} Ke3 {[%emt 0:01:58][%cal Rg3g1]} 58. Re8+ {[%emt 0:00:23]} Kf4 {[%emt 0:00:43] Zielt auf ...Rg1+ ab.} 59. Rc8 {[%emt 0:01:12]} Rc3 {[%emt 0:00:23] Gewichteter Fehlerwert: Weiß=0.75/Schwarz=0.16 (sehr präzise) .  Verlustzug:     	Weiß=1     	---        Fehler:       	Weiß=6     	Schwarz=3     Ungenau:       	Weiß=3     	Schwarz=4     OK:         	Weiß=10    	Schwarz=14    Bester:       	Weiß=2     	Schwarz=4     Stark:        	Weiß=2     	Schwarz=1} (59... Rg1+ $142 60. Ke2 Rc1 61. h5 g3 62. Kd2 g2 63. Kxc1 g1=Q+ (63... g1=R+ 64. Kd2 $11) 64. Kc2 Qf2+ 65. Kb3 Qd4 66. Rf8 c4+ 67. Ka4 Qd7+ 68. Kb4 Qe7+ 69. Kxc4 Qxf8 70. Kd5 Ke3 71. Ke6 Ke4 72. h6 Qxh6+ 73. Kf7 Kd5 74. Kg8 Qg5+ 75. Kh8 Ke6 76. Kh7 Kf6 77. Kh8 Qg7#) 0-1